fUSD/lending_fUSD_20260115
["ID","MTS","AMOUNT","RATE_DAILY","PERIOD"]
[402024720,1768485042216,-958.95920354,0.0002807,2]
[402024721,1768485042228,-1000.0,0.0002859,2]
[402024722,1768485042239,-288.858,0.00028671,2]
[402024723,1768485042249,-6558.0,0.00028671,2]
[402024724,1768485042259,-506.0,0.00029252,4]
[402024725,1768485042269,-758.48,0.00029307,2]
[402024726,1768485042279,-958.7,0.00029358,2]
[402024727,1768485042288,-152.71693468,0.00029759,2]
[402024728,1768485042297,-163.35,0.00029922,30]
[402024729,1768485042307,-235.48,0.0003,2]
[402024730,1768485042317,-2000.0,0.00030137,2]
[402024731,1768485042326,-200.0,0.00030137,2]
[402024732,1768485042335,-200.0,0.00030438,2]
[402024733,1768485042344,-758.48,0.00030772,2]
[402024734,1768485042354,-1000.0,0.00031327,2]
[402024735,1768485042363,-506.0,0.00031366,6]
[402024736,1768485042371,-958.7,0.00031606,2]
[402024737,1768485042381,-700.46287681,0.00031637,2]
[402024738,1768485042390,-1889.469,0.00031671,2]
[402024739,1768485042400,-156.14,0.00031905,2]
[402024740,1768485042409,-188.0,0.00032,120]
[402024741,1768485042418,-758.48,0.00032238,2]
[402024742,1768485042427,-409.74,0.00032748,2]
[402024743,1768485042436,-174.61919141,0.00032877,2]
[402024744,1768485042445,-500.0,0.00032877,2]
[402024745,1768485042455,-153.76,0.000329,14]
[402024746,1768485042466,-500.0,0.00032932,2]
[402024747,1768485042476,-150.0,0.00032934,2]
[402024748,1768485042486,-500.0,0.00032987,2]
[402024749,1768485042499,-500.0,0.00033041,2]
[402024750,1768485042508,-187.22,0.00033048,2]
[402024751,1768485042518,-445.0,0.00033096,2]
[402024752,1768485042527,-1547.2,0.00033259,2]
[402024753,1768485042536,-506.0,0.00033481,8]
[402024754,1768485042546,-758.48,0.00033703,2]
[402024755,1768485042556,-5800.0,0.0003372,2]
[402024756,1768485042568,-5800.0,0.00033729,2]
[402024757,1768485042579,-5800.0,0.00033737,2]
[402024758,1768485042589,-5800.0,0.00033746,2]
[402024759,1768485042599,-4854.91338566,0.00033754,2]
[402024760,1768485042631,-945.08661434,0.00033754,2]
[402024761,1768485042640,-5800.0,0.00033768,2]
[402024762,1768485042650,-2826.68585097,0.00033776,2]
[402024769,1768485044873,-710.45528826,0.00033776,2]
[402024770,1768485044892,-595.76766819,0.00033776,2]
[402024771,1768485044903,-1667.09119258,0.00033776,2]
[402024772,1768485044913,-170.0,0.00034,120]
[402024773,1768485044922,-5800.0,0.00034078,2]
[402024774,1768485044931,-5800.0,0.00034086,2]
[402024775,1768485044940,-5800.0,0.00034095,2]
[402024776,1768485044949,-5800.0,0.00034103,2]
[402024777,1768485044958,-196.20527409,0.0003411,2]
[402024778,1768485044967,-5800.0,0.00034112,2]
[402024779,1768485044976,-5800.0,0.0003412,2]
[402024780,1768485044984,-5800.0,0.00034129,2]
[402024781,1768485044993,-5800.0,0.00034137,2]
[402024782,1768485045002,-153.76,0.000349,14]
[402024783,1768485045011,-163.35,0.00034969,30]
[402024784,1768485045020,-300.0,0.00035,2]
[402024785,1768485045029,-758.48,0.00035168,2]
[402024786,1768485045038,-700.0,0.0003557,2]
[402024787,1768485045047,-489.42632882,0.0003557,2]
[402024788,1768485045056,-506.0,0.00035595,11]
[402024789,1768485045065,-600.0,0.00035616,2]
[402024790,1768485045074,-295.02983699,0.00035616,2]
[402024791,1768485045084,-152.71693468,0.00035788,2]
[402024793,1768485045093,-156.14,0.00035893,2]
[402024794,1768485045102,-300.19837577,0.00035921,30]
[402024795,1768485045110,-170.0,0.00036,120]
[402024796,1768485045119,-600.0,0.00036164,2]
[402024797,1768485045128,-153.76,0.000362,14]
[402024798,1768485045137,-300.0,0.00037,2]
[402024799,1768485045146,-150.0,0.00037495,2]
[402024800,1768485045155,-556.93,0.00037495,2]
[402024801,1768485045164,-467.24,0.00037495,2]
[402024802,1768485045173,-506.0,0.0003771,13]
[402024803,1768485045182,-1995.0,0.00038,30]
[402024804,1768485045191,-170.0,0.00038,120]
[402024805,1768485045199,-3000.0,0.00038,30]
[402024806,1768485045208,-1315.41808714,0.00038282,4]
[402024807,1768485045217,-152.0,0.00038592,3]
[402024808,1768485045226,-1647.23,0.000386,30]
[402024809,1768485045235,-153.76,0.000386,14]
[402024810,1768485045244,-150.0,0.0003861,30]
[402024812,1768485045253,-500.0,0.00039,30]
[402024814,1768485045262,-161.0,0.00039,120]
[402024816,1768485045271,-1000.0,0.00039,120]
[402024818,1768485045281,-1000.0,0.00039003,7]
[402024820,1768485045290,-162.0,0.00039039,11]
[402024822,1768485045299,-162.0,0.00039679,11]
[402024824,1768485045308,-1000.0,0.0003968,7]
[402024826,1768485045318,-500.0,0.00039726,120]
[402024828,1768485045328,-500.0,0.00039726,120]
[402024829,1768485045337,-506.0,0.00039824,15]
[402024830,1768485045346,-500.0,0.00039863,120]
[402024831,1768485045356,-500.0,0.00039863,120]
[402024832,1768485045365,-169.94692312,0.000399,2]
[402024833,1768485045374,-1811.30661323,0.00039911,120]
[402024834,1768485045383,-500.0,0.0003997,15]
[402024835,1768485045393,-500.0,0.00039999,31]
[402024836,1768485045402,-264.59597782,0.00039999,31]
[402024837,1768485045411,-405.00765844,0.00039999,31]
[402024838,1768485045420,-629.81283565,0.00039999,31]
[402024839,1768485045429,-416.68238572,0.00039999,31]
[402024840,1768485045438,-500.0,0.00039999,31]
[402024841,1768485045447,-500.0,0.00039999,31]
[402024842,1768485045456,-42041.36771608,0.0004,40]
[402024844,1768485045576,-7958.63228392,0.0004,40]
[402024845,1768485045585,-23899.64305621,0.0004,30]
[402024846,1768485045596,-26100.35694379,0.0004,30]
[402024847,1768485045607,-5000.0,0.0004,20]
[402024848,1768485045617,-224.0,0.0004,120]
[402024849,1768485045626,-1427.95863241,0.0004,120]
[402024850,1768485045635,-232.85313218,0.0004,2]
[402024851,1768485045644,-500.0,0.0004,10]
[402024852,1768485045654,-300.0,0.0004,5]
[402024853,1768485045663,-556.0,0.0004,120]
[402024854,1768485045672,-250.3262665,0.0004,10]
[402024855,1768485045681,-7000.0,0.0004,5]
[402024856,1768485045691,-375.03357698,0.0004,120]
[402024857,1768485045700,-5024.744069,0.0004,10]
[402024858,1768485045709,-1842.08740266,0.0004,120]
[402024859,1768485045718,-1000.0,0.0004,120]
[402024860,1768485045728,-1759.47,0.0004,60]
[402024861,1768485045738,-804.30846688,0.0004,3]
[402024862,1768485045747,-150.0,0.0004,120]
[402024863,1768485045757,-150.0,0.0004,120]
[402024864,1768485045766,-150.0,0.0004,120]
[402024865,1768485045775,-150.0,0.0004,120]
[402024866,1768485045784,-150.0,0.0004,120]
[402024867,1768485045793,-500.0,0.0004,120]
[402024868,1768485045803,-510.57,0.0004,120]
[402024869,1768485045811,-163.35,0.00040016,120]
[402024870,1768485045821,-500.0,0.00040136,120]
[402024871,1768485045830,-1093.59199836,0.0004019,120]
[402024872,1768485045840,-700.0,0.0004027,3]
[402024873,1768485045849,-400.0,0.0004027,3]
[402024874,1768485045860,-500.0,0.00040273,120]
[402024875,1768485045869,-162.0,0.00040354,11]
[402024876,1768485045879,-500.0,0.0004041,120]
[402024877,1768485045887,-169.94692312,0.00040459,28]
[402024878,1768485045897,-500.0,0.00040547,120]
[402024879,1768485045906,-1349.222,0.00040583,58]
[402024880,1768485045915,-1000.0,0.00040653,7]
[402024881,1768485045924,-500.0,0.00040684,120]
[402024882,1768485045933,-5355.53160125,0.00040707,30]
[402024883,1768485045943,-834.0,0.00040743,11]
[402024884,1768485045952,-500.0,0.00040821,120]
[402024885,1768485045961,-1151.3575,0.0004089,3]
[402024886,1768485045971,-2000.0,0.0004089,3]
[402024887,1768485045980,-500.0,0.00040958,120]
[402024888,1768485045989,-834.0,0.00040994,11]
[402024889,1768485046000,-156.87669306,0.00040995,2]
[402024890,1768485046010,-611.0583492,0.00040995,2]
[402024891,1768485046020,-151.0,0.00040997,14]
[402024892,1768485046029,-150.0,0.00040999,20]
[402024894,1768485046040,-50000.0,0.00041,41]
[402024895,1768485046051,-50000.0,0.00041,31]
[402024896,1768485046061,-150.0,0.00041,23]
[402024897,1768485046071,-230.0,0.00041,30]
[402024898,1768485046081,-1000.0,0.00041,120]
[402024899,1768485046093,-1000.0,0.00041,120]
[402024901,1768485046104,-5108.02593247,0.00041,120]
[402024902,1768485046114,-150.0,0.00041,120]
[402024903,1768485046129,-150.0,0.00041,120]
[402024904,1768485046140,-150.0,0.00041,120]
[402024905,1768485046149,-150.0,0.00041,120]
[402024906,1768485046158,-150.0,0.00041,120]
[402024907,1768485046167,-253.0,0.00041,34]
[402024908,1768485046176,-169.94692312,0.00041017,28]
[402024909,1768485046186,-1400.0,0.0004103,14]
[402024910,1768485046195,-2700.0,0.0004103,14]
[402024911,1768485046204,-19130.29359095,0.0004103,15]
[402024912,1768485046213,-700.0,0.0004107,3]
[402024914,1768485046222,-400.0,0.0004107,3]
[402024916,1768485046231,-96645.62713632,0.0004109,60]
[402024917,1768485046241,-151.0,0.00041092,14]
[402024918,1768485046250,-500.0,0.00041095,30]
[402024919,1768485046260,-227.716361,0.00041095,30]
[402024920,1768485046269,-269.655452,0.00041095,30]
[402024921,1768485046277,-500.0,0.00041095,30]
[402024922,1768485046287,-500.0,0.00041095,30]
[402024923,1768485046296,-150.978527,0.00041095,30]
[402024924,1768485046305,-500.0,0.00041095,30]
[402024925,1768485046315,-150.978527,0.00041095,30]
[402024926,1768485046326,-760.07,0.00041095,30]
[402024927,1768485046335,-500.0,0.00041095,30]
[402024928,1768485046345,-1282.39,0.00041095,30]
[402024929,1768485046356,-1058.27,0.00041095,30]
[402024930,1768485046365,-500.0,0.00041095,30]
[402024931,1768485046374,-500.0,0.00041095,30]
[402024932,1768485046383,-500.0,0.00041095,30]
[402024933,1768485046392,-514.19,0.00041095,30]
[402024934,1768485046402,-500.79475308,0.00041095,30]
[402024935,1768485046416,-849.34,0.00041095,30]
[402024936,1768485046435,-500.0,0.00041095,30]
[402024937,1768485046455,-500.0,0.00041095,30]
[402024938,1768485046479,-503.02025587,0.00041095,30]
[402024939,1768485046494,-500.0,0.00041095,30]
[402024940,1768485046507,-553.76,0.00041095,30]
[402024941,1768485046517,-980.09,0.00041095,30]
[402024942,1768485046526,-500.0,0.00041095,30]
[402024943,1768485046535,-500.0,0.00041095,30]
[402024944,1768485046544,-500.0,0.00041095,30]
[402024945,1768485046554,-500.0,0.00041095,30]
[402024946,1768485046563,-560.15,0.00041095,30]
[402024947,1768485046573,-500.0,0.00041095,30]
[402024948,1768485046583,-502.26328326,0.00041095,30]
[402024949,1768485046593,-500.0,0.00041095,30]
[402024950,1768485046602,-500.0,0.00041095,30]
[402024951,1768485046612,-500.0,0.00041095,30]
[402024952,1768485046622,-500.0,0.00041095,30]
[402024953,1768485046631,-500.0,0.00041095,30]
[402024955,1768485046640,-1202.45,0.00041095,30]
[402024956,1768485046650,-551.93167701,0.00041095,30]
[402024957,1768485046659,-500.0,0.00041095,30]
[402024958,1768485046668,-200.0,0.00041095,120]
[402024959,1768485046677,-500.0,0.00041095,30]
[402024960,1768485046687,-500.0,0.00041095,30]
[402024962,1768485046696,-500.0,0.00041095,30]
[402024963,1768485046705,-500.0,0.00041095,30]
[402024964,1768485046716,-500.0,0.00041095,30]
[402024965,1768485046725,-500.0,0.00041095,30]
[402024966,1768485046734,-500.0,0.00041095,30]
[402024967,1768485046743,-500.0,0.00041095,30]
[402024969,1768485046752,-151.0,0.00041095,120]
[402024970,1768485046761,-537.92,0.00041095,30]
[402024972,1768485046771,-500.0,0.00041095,30]
[402024973,1768485046780,-151.0,0.00041095,120]
[402024974,1768485046791,-500.0,0.00041095,7]
[402024975,1768485046800,-500.0,0.00041095,30]
[402024976,1768485046811,-500.0,0.00041095,30]
[402024978,1768485046821,-500.0,0.00041095,30]
[402024979,1768485046832,-500.0,0.00041095,30]
[402024980,1768485046842,-1497.75,0.00041095,30]
[402024981,1768485046852,-500.0,0.00041095,30]
[402024982,1768485046863,-500.0,0.00041095,30]
[402024983,1768485046872,-500.0,0.00041095,30]
[402024984,1768485046881,-151.0,0.00041095,120]
[402024985,1768485046893,-500.0,0.00041095,30]
[402024986,1768485046903,-151.0,0.00041095,120]
[402024987,1768485046912,-151.0,0.00041095,120]
[402024988,1768485046923,-500.0,0.00041095,30]
[402024989,1768485046933,-1476.05,0.00041095,30]
[402024990,1768485046945,-151.0,0.00041095,120]
[402024991,1768485046955,-500.0,0.00041095,30]
[402024992,1768485046964,-151.0,0.00041095,120]
[402024993,1768485046974,-156.87181,0.00041095,120]
[402024994,1768485046983,-500.0,0.00041095,30]
[402024995,1768485046993,-500.0,0.00041095,30]
[402024996,1768485047003,-500.0,0.00041095,30]
[402024997,1768485047012,-714.71,0.00041095,30]
[402024998,1768485047022,-500.0,0.00041095,30]
[402024999,1768485047031,-500.0,0.00041095,30]
[402025000,1768485047040,-500.0,0.00041095,30]
[402025001,1768485047050,-500.0,0.00041095,30]
[402025002,1768485047059,-500.0,0.00041095,30]
[402025003,1768485047069,-500.0,0.00041095,30]
[402025004,1768485047078,-500.0,0.00041095,30]
[402025005,1768485047087,-500.0,0.00041095,30]
[402025006,1768485047097,-1709.04,0.00041095,30]
[402025007,1768485047108,-1275.41,0.00041095,30]
[402025008,1768485047117,-1596.93,0.00041095,30]
[402025009,1768485047126,-952.79,0.00041095,30]
[402025010,1768485047135,-151.0,0.00041095,120]
[402025011,1768485047147,-151.0,0.00041095,120]
[402025012,1768485047157,-500.0,0.00041095,30]
[402025013,1768485047166,-500.0,0.00041095,30]
[402025014,1768485047176,-500.0,0.00041095,30]
[402025015,1768485047188,-500.0,0.00041095,30]
[402025016,1768485047201,-500.0,0.00041095,30]
[402025017,1768485047216,-500.0,0.00041095,30]
[402025018,1768485047226,-500.0,0.00041095,30]
[402025019,1768485047235,-500.0,0.00041095,30]
[402025020,1768485047244,-465.79123866,0.00041095,30]
[402025021,1768485047254,-526.06188604,0.00041095,30]
[402025022,1768485047263,-500.0,0.00041095,30]
[402025023,1768485047274,-500.0,0.00041095,30]
[402025024,1768485047283,-500.0,0.00041095,30]
[402025025,1768485047293,-500.0,0.00041095,30]
[402025026,1768485047302,-1423.54,0.00041095,30]
[402025027,1768485047311,-500.0,0.00041095,30]
[402025028,1768485047320,-500.0,0.00041095,30]
[402025029,1768485047332,-500.0,0.00041095,30]
[402025030,1768485047346,-501.07670162,0.00041095,30]
[402025031,1768485047361,-500.0,0.00041095,30]
[402025032,1768485047370,-690.13,0.00041095,30]
[402025033,1768485047379,-151.0,0.00041095,120]
[402025034,1768485047388,-1024.88,0.00041095,30]
[402025035,1768485047397,-831.09,0.00041095,30]
[402025036,1768485047406,-151.0,0.00041095,120]
[402025037,1768485047416,-500.0,0.00041095,30]
[402025038,1768485047425,-151.0,0.00041095,120]
[402025039,1768485047435,-1463.06,0.00041095,30]
[402025040,1768485047444,-500.0,0.00041095,30]
[402025041,1768485047453,-151.0,0.00041095,120]
[402025042,1768485047462,-500.0,0.00041095,30]
[402025043,1768485047471,-151.0,0.00041095,120]
[402025044,1768485047480,-678.76,0.00041095,30]
[402025045,1768485047496,-943.66,0.00041095,30]
[402025046,1768485047506,-900.43,0.00041095,30]
[402025047,1768485047515,-265.813742,0.00041095,120]
[402025048,1768485047525,-500.0,0.00041095,30]
[402025049,1768485047535,-1266.83392531,0.00041095,30]
[402025050,1768485047546,-500.0,0.00041095,30]
[402025051,1768485047555,-1105.75,0.00041095,30]
[402025052,1768485047574,-1556.46,0.00041095,30]
[402025053,1768485047584,-500.0,0.00041095,30]
[402025054,1768485047594,-500.0,0.00041095,30]
[402025055,1768485047604,-600.82492595,0.00041095,30]
[402025056,1768485047615,-692.91,0.00041095,30]
[402025057,1768485047624,-500.0,0.00041095,30]
[402025058,1768485047634,-574.11,0.00041095,30]
[402025059,1768485047644,-500.0,0.00041095,30]
[402025060,1768485047653,-500.0,0.00041095,30]
[402025061,1768485047662,-500.0,0.00041095,30]
[402025062,1768485047672,-804.26,0.00041095,30]
[402025063,1768485047682,-946.59,0.00041095,30]
[402025064,1768485047691,-500.0,0.00041095,30]
[402025065,1768485047700,-500.0,0.00041095,30]
[402025066,1768485047710,-500.0,0.00041095,30]
[402025067,1768485047719,-578.12,0.00041095,30]
[402025068,1768485047729,-500.0,0.00041095,30]
[402025069,1768485047749,-500.0,0.00041095,30]
[402025070,1768485047759,-506.38,0.00041095,30]
[402025071,1768485047768,-526.09,0.00041095,30]
[402025072,1768485047779,-500.0,0.00041095,30]
[402025073,1768485047788,-565.25217949,0.00041095,30]
[402025074,1768485047797,-500.0,0.00041095,30]
[402025075,1768485047807,-500.0,0.00041095,30]
[402025076,1768485047818,-952.37,0.00041095,30]
[402025077,1768485047828,-701.87,0.00041095,30]
[402025078,1768485047837,-500.0,0.00041095,30]
[402025079,1768485047846,-500.0,0.00041095,30]
[402025080,1768485047856,-500.0,0.00041095,30]
[402025081,1768485047866,-500.0,0.00041095,30]
[402025082,1768485047875,-500.0,0.00041095,30]
[402025083,1768485047885,-1000.0,0.00041095,2]
[402025084,1768485047895,-500.0,0.00041095,30]
[402025085,1768485047904,-505.57098405,0.00041095,30]
[402025086,1768485047913,-500.0,0.00041095,30]
[402025087,1768485047922,-151.0,0.00041095,120]
[402025088,1768485047931,-518.03,0.00041095,30]
[402025089,1768485047941,-205.391288,0.00041095,60]
[402025090,1768485047950,-500.0,0.00041095,30]
[402025091,1768485047960,-500.0,0.00041095,30]
[402025092,1768485047970,-500.0,0.00041095,30]
[402025093,1768485047979,-500.0,0.00041095,30]
[402025094,1768485047989,-500.0,0.00041095,30]
[402025095,1768485047998,-500.0,0.00041095,30]
[402025096,1768485048007,-911.51,0.00041095,30]
[402025097,1768485048016,-500.0,0.00041095,30]
[402025098,1768485048025,-500.0,0.00041095,30]
[402025099,1768485048035,-500.0,0.00041095,30]
[402025100,1768485048044,-500.0,0.00041095,30]
[402025101,1768485048054,-500.0,0.00041095,120]
[402025102,1768485048064,-500.0,0.00041095,30]
[402025103,1768485048073,-538.0,0.00041095,30]
[402025104,1768485048082,-527.31266406,0.00041095,30]
[402025105,1768485048092,-500.0,0.00041095,30]
[402025106,1768485048102,-500.0,0.00041095,30]
[402025107,1768485048112,-1043.84,0.00041095,30]
[402025108,1768485048121,-151.0,0.00041095,120]
[402025109,1768485048136,-500.0,0.00041095,30]
[402025110,1768485048146,-816.46,0.00041095,30]
[402025111,1768485048155,-500.0,0.00041095,30]
[402025112,1768485048167,-506.87819446,0.00041095,30]
[402025113,1768485048178,-530.8821536,0.00041095,30]
[402025114,1768485048189,-725.02,0.00041095,30]
[402025115,1768485048199,-501.68007646,0.00041095,30]
[402025116,1768485048208,-500.0,0.00041095,30]
[402025117,1768485048217,-500.0,0.00041095,30]
[402025118,1768485048228,-500.0,0.00041095,30]
[402025119,1768485048239,-500.0,0.00041095,30]
[402025120,1768485048251,-500.0,0.00041095,30]
[402025121,1768485048262,-500.0,0.00041095,30]
[402025122,1768485048271,-500.0,0.00041095,30]
[402025123,1768485048281,-500.0,0.00041095,30]
[402025124,1768485048290,-772.05,0.00041095,30]
[402025125,1768485048299,-500.0,0.00041095,30]
[402025126,1768485048309,-583.96,0.00041095,30]
[402025127,1768485048318,-500.0,0.00041095,30]
[402025128,1768485048328,-715.08,0.00041095,30]
[402025129,1768485048338,-500.0,0.00041095,30]
[402025130,1768485048347,-151.0,0.00041095,90]
[402025131,1768485048358,-500.0,0.00041095,30]
[402025132,1768485048368,-151.0,0.00041095,120]
[402025133,1768485048378,-500.0,0.00041095,30]
[402025134,1768485048388,-500.0,0.00041095,30]
[402025135,1768485048398,-500.0,0.00041095,30]
[402025136,1768485048408,-500.0,0.00041095,30]
[402025137,1768485048418,-500.0,0.00041095,30]
[402025138,1768485048740,-501.44620448,0.00041095,30]
[402025139,1768485048751,-500.0,0.00041095,30]
[402025140,1768485048762,-500.0,0.00041095,30]
[402025141,1768485048772,-500.0,0.00041095,30]
[402025142,1768485048781,-504.23551554,0.00041095,30]
[402025143,1768485048791,-500.0,0.00041095,30]
[402025144,1768485048800,-500.0,0.00041095,30]
[402025145,1768485048810,-503.1,0.00041095,30]
[402025146,1768485048819,-687.6,0.00041095,30]
[402025147,1768485048829,-500.0,0.00041095,30]
[402025148,1768485048838,-500.0,0.00041095,30]
[402025149,1768485048848,-1881.89,0.00041095,30]
[402025150,1768485048857,-500.0,0.00041095,30]
[402025151,1768485048867,-500.0,0.00041095,30]
[402025152,1768485048876,-500.0,0.00041095,30]
[402025153,1768485048887,-151.0,0.00041095,120]
[402025154,1768485048896,-500.0,0.00041095,30]
[402025155,1768485048906,-500.0,0.00041095,30]
[402025156,1768485048918,-151.0,0.00041095,120]
[402025157,1768485048928,-500.0,0.00041095,30]
[402025158,1768485048938,-500.0,0.00041095,30]
[402025159,1768485048948,-500.0,0.00041095,30]
[402025160,1768485048957,-500.0,0.00041095,30]
[402025161,1768485048967,-500.0,0.00041095,30]
[402025162,1768485048977,-540.2852585,0.00041095,30]
[402025163,1768485048986,-500.0,0.00041095,30]
[402025164,1768485048995,-500.0,0.00041095,30]
[402025165,1768485049005,-500.0,0.00041095,30]
[402025166,1768485049015,-500.0,0.00041095,30]
[402025167,1768485049024,-500.0,0.00041095,30]
[402025168,1768485049034,-700.27,0.00041095,30]
[402025169,1768485049043,-500.0,0.00041095,30]
[402025170,1768485049053,-500.0,0.00041095,30]
[402025171,1768485049062,-500.0,0.00041095,30]
[402025172,1768485049072,-516.75055159,0.00041095,30]
[402025173,1768485049082,-500.0,0.00041095,30]
[402025174,1768485049091,-500.0,0.00041095,30]
[402025175,1768485049101,-500.0,0.00041095,30]
[402025176,1768485049112,-697.03,0.00041095,30]
[402025177,1768485049121,-500.0,0.00041095,30]
[402025178,1768485049130,-500.0,0.00041095,30]
[402025179,1768485049140,-1079.22,0.00041095,30]
[402025180,1768485049150,-500.0,0.00041095,30]
[402025181,1768485049160,-500.0,0.00041095,30]
[402025182,1768485049169,-501.90590665,0.00041095,30]
[402025183,1768485049178,-500.0,0.00041095,30]
[402025184,1768485049189,-484.85391371,0.00041095,30]
[402025185,1768485049200,-500.0,0.00041095,30]
[402025186,1768485049210,-500.0,0.00041095,30]
[402025187,1768485049220,-723.82,0.00041095,30]
[402025188,1768485049230,-500.0,0.00041095,30]
[402025189,1768485049241,-504.74,0.00041095,30]
[402025190,1768485049252,-500.0,0.00041095,30]
[402025191,1768485049262,-500.0,0.00041095,30]
[402025192,1768485049271,-500.0,0.00041095,30]
[402025193,1768485049281,-500.0,0.00041095,30]
[402025194,1768485049292,-500.0,0.00041095,30]
[402025195,1768485049302,-500.0,0.00041095,30]
[402025196,1768485049312,-500.0,0.00041095,30]
[402025197,1768485049321,-500.0,0.00041095,30]
[402025198,1768485049331,-152.707742,0.00041095,120]
[402025199,1768485049340,-398.85231814,0.00041095,30]
[402025200,1768485049350,-500.0,0.00041095,30]
[402025201,1768485049360,-500.0,0.00041095,30]
[402025202,1768485049370,-1040.73,0.00041095,30]
[402025203,1768485049379,-500.0,0.00041095,30]
[402025204,1768485049389,-500.0,0.00041095,30]
[402025205,1768485049399,-500.0,0.00041095,30]
[402025206,1768485049409,-243.254605,0.00041095,120]
[402025207,1768485049419,-500.0,0.00041095,30]
[402025208,1768485049429,-500.0,0.00041095,30]
[402025209,1768485049440,-1238.63,0.00041095,30]
[402025210,1768485049449,-243.254605,0.00041095,120]
[402025211,1768485049459,-500.0,0.00041095,30]
[402025212,1768485049469,-1319.44,0.00041095,30]
[402025213,1768485049480,-243.254605,0.00041095,120]
[402025214,1768485049490,-500.0,0.00041095,30]
[402025215,1768485049503,-243.254605,0.00041095,120]
[402025216,1768485049513,-500.0,0.00041095,30]
[402025217,1768485049523,-735.07,0.00041095,30]
[402025218,1768485049533,-301.999946,0.00041095,120]
[402025219,1768485049543,-500.0,0.00041095,30]
[402025220,1768485049552,-500.0,0.00041095,30]
[402025221,1768485049563,-500.0,0.00041095,30]
[402025222,1768485049572,-500.0,0.00041095,30]
[402025223,1768485049582,-500.0,0.00041095,30]
[402025224,1768485049591,-500.0,0.00041095,30]
[402025225,1768485049601,-500.0,0.00041095,30]
[402025226,1768485049612,-500.0,0.00041095,30]
[402025227,1768485049622,-151.0,0.00041095,120]
[402025228,1768485049632,-500.0,0.00041095,30]
[402025229,1768485049641,-520.12903781,0.00041095,30]
[402025230,1768485049651,-500.0,0.00041095,30]
[402025231,1768485049661,-954.82,0.00041095,30]
[402025232,1768485049670,-500.0,0.00041095,30]
[402025233,1768485049680,-500.0,0.00041095,30]
[402025234,1768485049690,-500.0,0.00041095,30]
[402025235,1768485049699,-500.0,0.00041095,30]
[402025236,1768485049709,-631.81,0.00041095,30]
[402025237,1768485049718,-500.0,0.00041095,30]
[402025238,1768485049728,-500.0,0.00041095,30]
[402025239,1768485049737,-381.2371603,0.00041095,30]
[402025240,1768485049747,-1719.96,0.00041095,30]
[402025241,1768485049756,-1276.18,0.00041095,30]
[402025242,1768485049766,-2296.69,0.00041095,30]
[402025243,1768485049775,-500.0,0.00041095,30]
[402025244,1768485049784,-1198.89,0.00041095,30]
[402025245,1768485049794,-500.0,0.00041095,30]